[Event "Early-Titled-Tuesday-Blitz-February-13-2024"]
[Site "Chess.com"]
[Date "2024.02.13"]
[Round "4"]
[White "Barbix1"]
[Black "TitarovVasiliYouTube"]
[Result "0-1"]
[WhiteElo "2304"]
[BlackElo "2520"]
[TimeControl "180+1"]
[EndTime "8:42:36 PST"]
[Termination "TitarovVasiliYouTube won on time"]

1. d4 {[%clk 0:03:00.9]} 1... d6 {[%clk 0:02:59.6]} 2. Nf3 {[%clk 0:03:00.9]}
2... Nf6 {[%clk 0:02:58.3]} 3. Bf4 {[%clk 0:02:59.6]} 3... Bg4 {[%clk
0:02:57.7]} 4. h3 {[%clk 0:02:52.9]} 4... Bxf3 {[%clk 0:02:57.2]} 5. exf3 {[%clk
0:02:53.8]} 5... d5 {[%clk 0:02:56.7]} 6. Bd3 {[%clk 0:02:49.4]} 6... e6 {[%clk
0:02:57.1]} 7. O-O {[%clk 0:02:48.2]} 7... Bd6 {[%clk 0:02:57.7]} 8. Be3 {[%clk
0:02:45.7]} 8... O-O {[%clk 0:02:57.5]} 9. Re1 {[%clk 0:02:45.5]} 9... Nbd7
{[%clk 0:02:53]} 10. Nd2 {[%clk 0:02:43.5]} 10... c5 {[%clk 0:02:52.4]} 11. c3
{[%clk 0:02:36.9]} 11... cxd4 {[%clk 0:02:52.5]} 12. cxd4 {[%clk 0:02:35.1]}
12... Qb6 {[%clk 0:02:50.9]} 13. Nb3 {[%clk 0:02:33.5]} 13... Rfc8 {[%clk
0:02:44.1]} 14. Rc1 {[%clk 0:02:32.7]} 14... a5 {[%clk 0:02:41.5]} 15. Re2
{[%clk 0:02:20]} 15... a4 {[%clk 0:02:35.1]} 16. Na1 {[%clk 0:01:56.9]} 16... a3
{[%clk 0:02:18]} 17. b3 {[%clk 0:01:39.4]} 17... Rxc1 {[%clk 0:02:07]} 18. Qxc1
{[%clk 0:01:38.8]} 18... g6 {[%clk 0:01:31.9]} 19. Rc2 {[%clk 0:01:36.7]} 19...
Rf8 {[%clk 0:01:08.1]} 20. b4 {[%clk 0:01:27]} 20... Qxb4 {[%clk 0:01:00.9]} 21.
Nb3 {[%clk 0:01:27.1]} 21... Nb8 {[%clk 0:00:55.5]} 22. Bd2 {[%clk 0:00:54.6]}
22... Qa4 {[%clk 0:00:49.1]} 23. Bh6 {[%clk 0:00:31.2]} 23... Re8 {[%clk
0:00:47.3]} 24. Rc8 {[%clk 0:00:26.5]} 24... Nc6 {[%clk 0:00:45.7]} 25. Rxe8+
{[%clk 0:00:13.3]} 25... Nxe8 {[%clk 0:00:46.6]} 26. h4 {[%clk 0:00:08]} 26...
Qb4 {[%clk 0:00:32.2]} 27. h5 {[%clk 0:00:03.9]} 27... Bf8 {[%clk 0:00:32.5]}
28. Bd2 {[%clk 0:00:03.3]} 28... Qb6 {[%clk 0:00:27.5]} 29. hxg6 {[%clk
0:00:03.5]} 29... hxg6 {[%clk 0:00:28]} 30. Be3 {[%clk 0:00:01.6]} 30... Bg7
{[%clk 0:00:26.5]} 31. Qc2 {[%clk 0:00:01.3]} 31... Nxd4 {[%clk 0:00:24]} 0-1

[Event "Early-Titled-Tuesday-Blitz-February-13-2024"]
[Site "Chess.com"]
[Date "2024.02.13"]
[Round "4"]
[White "LionelMessiFCB"]
[Black "Qingdom"]
[Result "0-1"]
[WhiteElo "2475"]
[BlackElo "2194"]
[TimeControl "180+1"]
[EndTime "8:42:36 PST"]
[Termination "Qingdom won by resignation"]

1. c4 {[%clk 0:02:53.1]} 1... e6 {[%clk 0:02:58.8]} 2. g3 {[%clk 0:02:52.9]}
2... d5 {[%clk 0:02:58.8]} 3. Bg2 {[%clk 0:02:53.2]} 3... Nf6 {[%clk 0:02:57.8]}
4. Nf3 {[%clk 0:02:53.4]} 4... Be7 {[%clk 0:02:58]} 5. O-O {[%clk 0:02:53.4]}
5... O-O {[%clk 0:02:58]} 6. b3 {[%clk 0:02:53.3]} 6... c5 {[%clk 0:02:57]} 7.
Bb2 {[%clk 0:02:53.3]} 7... Nc6 {[%clk 0:02:56.9]} 8. e3 {[%clk 0:02:53.4]} 8...
dxc4 {[%clk 0:02:51.7]} 9. bxc4 {[%clk 0:02:52.5]} 9... Qc7 {[%clk 0:02:51.5]}
10. d4 {[%clk 0:02:51.6]} 10... Rd8 {[%clk 0:02:50]} 11. Qc1 {[%clk 0:02:45.1]}
11... cxd4 {[%clk 0:02:47.3]} 12. exd4 {[%clk 0:02:44.5]} 12... b6 {[%clk
0:02:47.2]} 13. Nc3 {[%clk 0:02:21.8]} 13... Bb7 {[%clk 0:02:46.9]} 14. Ne2
{[%clk 0:01:39]} 14... Rac8 {[%clk 0:02:43.2]} 15. Bc3 {[%clk 0:01:18.3]} 15...
Ne4 {[%clk 0:02:38]} 16. Nd2 {[%clk 0:01:07.1]} 16... Nxc3 {[%clk 0:02:37.1]}
17. Qxc3 {[%clk 0:01:08]} 17... Bf6 {[%clk 0:02:27.8]} 18. Bxc6 {[%clk
0:01:04.5]} 18... Qxc6 {[%clk 0:02:26.5]} 19. f3 {[%clk 0:01:02.3]} 19... b5
{[%clk 0:01:57.1]} 20. c5 {[%clk 0:00:56.1]} 20... e5 {[%clk 0:01:49.7]} 21.
dxe5 {[%clk 0:00:45.9]} 21... Qxc5+ {[%clk 0:01:46.2]} 22. Qxc5 {[%clk
0:00:45.3]} 22... Rxc5 {[%clk 0:01:46.2]} 23. Rad1 {[%clk 0:00:33.5]} 23... Rxe5
{[%clk 0:01:43.1]} 24. Nf4 {[%clk 0:00:32.5]} 24... Kf8 {[%clk 0:01:33.5]} 25.
Kf2 {[%clk 0:00:28.1]} 25... Be7 {[%clk 0:01:31.4]} 26. Nb3 {[%clk 0:00:27.4]}
26... g5 {[%clk 0:01:25.3]} 27. Rxd8+ {[%clk 0:00:24.4]} 27... Bxd8 {[%clk
0:01:24.4]} 28. Nd3 {[%clk 0:00:24.5]} 28... Bb6+ {[%clk 0:01:24]} 29. Kg2
{[%clk 0:00:23.8]} 29... Re2+ {[%clk 0:01:22.3]} 30. Kh3 {[%clk 0:00:22.7]}
30... h5 {[%clk 0:01:12.7]} 31. g4 {[%clk 0:00:20.3]} 31... hxg4+ {[%clk
0:01:09.4]} 32. Kxg4 {[%clk 0:00:19.3]} 32... Rxh2 {[%clk 0:01:08.7]} 33. Kxg5
{[%clk 0:00:19.3]} 33... Rxa2 {[%clk 0:01:08]} 34. Re1 {[%clk 0:00:16.8]} 34...
Kg7 {[%clk 0:01:07.3]} 35. Kf4 {[%clk 0:00:16.7]} 35... Kf6 {[%clk 0:01:03.3]}
36. Re5 {[%clk 0:00:16.5]} 36... Bc7 {[%clk 0:01:03]} 37. Nbc5 {[%clk
0:00:15.5]} 37... Bxe5+ {[%clk 0:01:02.9]} 38. Nxe5 {[%clk 0:00:16.4]} 38... Bd5
{[%clk 0:01:00.1]} 39. Ncd7+ {[%clk 0:00:16.4]} 39... Ke6 {[%clk 0:00:59.5]} 40.
Nc5+ {[%clk 0:00:16.5]} 40... Kd6 {[%clk 0:00:59.5]} 41. Ncd3 {[%clk 0:00:16.7]}
41... a5 {[%clk 0:00:57.4]} 42. Kf5 {[%clk 0:00:16.9]} 42... b4 {[%clk
0:00:56.5]} 43. Kf6 {[%clk 0:00:17.3]} 43... Rd2 {[%clk 0:00:55.3]} 44. Nf4
{[%clk 0:00:18.2]} 44... Rf2 {[%clk 0:00:52.2]} 45. Nxd5 {[%clk 0:00:17.8]}
45... Kxd5 {[%clk 0:00:52.4]} 46. Kf5 {[%clk 0:00:18.2]} 46... b3 {[%clk
0:00:51.5]} 47. f4 {[%clk 0:00:19.1]} 47... b2 {[%clk 0:00:51.3]} 48. Nd3 {[%clk
0:00:20]} 48... b1=Q {[%clk 0:00:48.5]} 0-1

[Event "Early-Titled-Tuesday-Blitz-February-13-2024"]
[Site "Chess.com"]
[Date "2024.02.13"]
[Round "4"]
[White "m_ezat"]
[Black "wannabe2700"]
[Result "1-0"]
[WhiteElo "2442"]
[BlackElo "2653"]
[TimeControl "180+1"]
[EndTime "8:42:37 PST"]
[Termination "m_ezat won by checkmate"]

1. e4 {[%clk 0:02:55.7]} 1... c5 {[%clk 0:02:59.7]} 2. d4 {[%clk 0:02:49.4]}
2... cxd4 {[%clk 0:02:59]} 3. c3 {[%clk 0:02:49.2]} 3... dxc3 {[%clk 0:02:59]}
4. Nxc3 {[%clk 0:02:38.9]} 4... Nc6 {[%clk 0:02:57.9]} 5. Nf3 {[%clk 0:02:29.1]}
5... e6 {[%clk 0:02:56.8]} 6. Bc4 {[%clk 0:02:28.6]} 6... Bb4 {[%clk 0:02:55.9]}
7. O-O {[%clk 0:02:28.3]} 7... Nge7 {[%clk 0:02:56.2]} 8. Qe2 {[%clk 0:02:27.8]}
8... Bxc3 {[%clk 0:02:48.6]} 9. bxc3 {[%clk 0:02:21.2]} 9... d5 {[%clk
0:02:47.5]} 10. Rd1 {[%clk 0:02:19.4]} 10... O-O {[%clk 0:02:40.5]} 11. Ba3
{[%clk 0:02:11.1]} 11... Qa5 {[%clk 0:02:31.5]} 12. Bxe7 {[%clk 0:02:05.8]}
12... Nxe7 {[%clk 0:02:31.7]} 13. Bd3 {[%clk 0:02:02.5]} 13... Qxc3 {[%clk
0:02:18.1]} 14. Rac1 {[%clk 0:01:57.5]} 14... Qf6 {[%clk 0:02:16]} 15. Qe3
{[%clk 0:01:48]} 15... Nc6 {[%clk 0:02:13.4]} 16. e5 {[%clk 0:01:40.1]} 16...
Qh6 {[%clk 0:02:13.3]} 17. Ng5 {[%clk 0:01:39.6]} 17... Nxe5 {[%clk 0:01:44.2]}
18. Bxh7+ {[%clk 0:01:21.7]} 18... Kh8 {[%clk 0:01:44]} 19. Qxe5 {[%clk
0:01:21.8]} 19... Qf6 {[%clk 0:00:59.1]} 20. Qd6 {[%clk 0:01:11]} 20... Re8
{[%clk 0:00:59.5]} 21. Qg3 {[%clk 0:00:51.5]} 21... g6 {[%clk 0:00:57.1]} 22.
Rc3 {[%clk 0:00:33]} 22... e5 {[%clk 0:00:47.7]} 23. Rf3 {[%clk 0:00:29.8]}
23... Bf5 {[%clk 0:00:48]} 24. Qh4 {[%clk 0:00:23.7]} 24... Kg7 {[%clk
0:00:47.4]} 25. g4 {[%clk 0:00:23.4]} 25... e4 {[%clk 0:00:47.9]} 26. Rf4 {[%clk
0:00:20.9]} 26... Re5 {[%clk 0:00:38.1]} 27. gxf5 {[%clk 0:00:20.8]} 27... Rxf5
{[%clk 0:00:39]} 28. Rxf5 {[%clk 0:00:20.6]} 28... Qxf5 {[%clk 0:00:39.9]} 29.
f4 {[%clk 0:00:16.6]} 29... f6 {[%clk 0:00:33.9]} 30. Bxg6 {[%clk 0:00:14.5]}
30... Qxg6 {[%clk 0:00:34.8]} 31. Rxd5 {[%clk 0:00:13.2]} 31... Rc8 {[%clk
0:00:23.7]} 32. Kg2 {[%clk 0:00:11.3]} 32... Rc7 {[%clk 0:00:20.4]} 33. Rd8
{[%clk 0:00:08.8]} 33... fxg5 {[%clk 0:00:18.2]} 34. Qh8+ {[%clk 0:00:08.8]}
34... Kf7 {[%clk 0:00:18.9]} 35. Qf8+ {[%clk 0:00:09.1]} 35... Ke6 {[%clk
0:00:19.6]} 36. Rd6# {[%clk 0:00:09.3]} 1-0

[Event "Early-Titled-Tuesday-Blitz-February-13-2024"]
[Site "Chess.com"]
[Date "2024.02.13"]
[Round "4"]
[White "jcibarra"]
[Black "Alex_Banzea"]
[Result "1-0"]
[WhiteElo "2962"]
[BlackElo "2616"]
[TimeControl "180+1"]
[EndTime "8:42:39 PST"]
[Termination "jcibarra won on time"]

1. e4 {[%clk 0:03:00.9]} 1... c6 {[%clk 0:01:12.4]} 2. Nf3 {[%clk 0:03:00.7]}
2... d5 {[%clk 0:01:13.3]} 3. d3 {[%clk 0:03:01.2]} 3... g6 {[%clk 0:01:13.1]}
4. Qe2 {[%clk 0:03:00.9]} 4... Bg7 {[%clk 0:01:07.4]} 5. g3 {[%clk 0:03:01.4]}
5... e5 {[%clk 0:01:04]} 6. exd5 {[%clk 0:03:00.5]} 6... Ne7 {[%clk 0:01:04.6]}
7. d6 {[%clk 0:02:52.3]} 7... Qxd6 {[%clk 0:01:03.3]} 8. Bg2 {[%clk 0:02:53]}
8... O-O {[%clk 0:01:03.4]} 9. O-O {[%clk 0:02:53.4]} 9... Na6 {[%clk
0:01:00.6]} 10. Nbd2 {[%clk 0:02:52.9]} 10... Qc7 {[%clk 0:00:28.5]} 11. Re1
{[%clk 0:02:51]} 11... f6 {[%clk 0:00:22.8]} 12. d4 {[%clk 0:02:51.4]} 12... Nf5
{[%clk 0:00:17.3]} 13. dxe5 {[%clk 0:02:49.8]} 13... fxe5 {[%clk 0:00:18.2]} 14.
c3 {[%clk 0:02:29]} 14... Re8 {[%clk 0:00:16.9]} 15. Ne4 {[%clk 0:02:28.2]}
15... Be6 {[%clk 0:00:14.9]} 16. Nfg5 {[%clk 0:02:27.6]} 16... Bd5 {[%clk
0:00:15.1]} 17. Qg4 {[%clk 0:01:48.4]} 17... Rad8 {[%clk 0:00:13.7]} 18. Bd2
{[%clk 0:01:34.4]} 18... h6 {[%clk 0:00:13]} 19. Nf3 {[%clk 0:01:34.7]} 19...
Qf7 {[%clk 0:00:11.9]} 20. b3 {[%clk 0:01:31.9]} 20... Nc7 {[%clk 0:00:11.2]}
21. Rad1 {[%clk 0:01:13.3]} 21... Ne6 {[%clk 0:00:11.7]} 22. Qh3 {[%clk
0:01:01.2]} 22... b5 {[%clk 0:00:11.3]} 23. Re2 {[%clk 0:00:53.6]} 23... g5
{[%clk 0:00:10.1]} 24. Rde1 {[%clk 0:00:49.4]} 24... Qg6 {[%clk 0:00:10.7]} 25.
g4 {[%clk 0:00:44.5]} 25... Ne7 {[%clk 0:00:09.5]} 26. Ng3 {[%clk 0:00:37.5]}
26... Bxf3 {[%clk 0:00:05.1]} 27. Bxf3 {[%clk 0:00:36.3]} 27... Nd5 {[%clk
0:00:06]} 28. Be4 {[%clk 0:00:32.6]} 28... Qf6 {[%clk 0:00:04.7]} 29. Nh5 {[%clk
0:00:32.5]} 29... Qf8 {[%clk 0:00:05.3]} 30. Qf3 {[%clk 0:00:26.3]} 30... Nef4
{[%clk 0:00:04.3]} 31. Nxf4 {[%clk 0:00:20.4]} 31... gxf4 {[%clk 0:00:04.6]} 32.
c4 {[%clk 0:00:17.9]} 32... bxc4 {[%clk 0:00:03]} 33. bxc4 {[%clk 0:00:18.8]}
1-0

[Event "Early-Titled-Tuesday-Blitz-February-13-2024"]
[Site "Chess.com"]
[Date "2024.02.13"]
[Round "4"]
[White "Hikaru"]
[Black "bancsoo"]
[Result "1-0"]
[WhiteElo "3383"]
[BlackElo "2911"]
[TimeControl "180+1"]
[EndTime "8:42:40 PST"]
[Termination "Hikaru won by resignation"]

1. Nf3 {[%clk 0:03:00.9]} 1... d5 {[%clk 0:02:59]} 2. g3 {[%clk 0:03:01.1]} 2...
Bg4 {[%clk 0:02:58.2]} 3. Bg2 {[%clk 0:03:00.9]} 3... c6 {[%clk 0:02:58.4]} 4.
d3 {[%clk 0:02:59.7]} 4... Nf6 {[%clk 0:02:58.8]} 5. Nbd2 {[%clk 0:02:59.7]}
5... Nbd7 {[%clk 0:02:57.7]} 6. e4 {[%clk 0:02:59.9]} 6... dxe4 {[%clk 0:02:57]}
7. dxe4 {[%clk 0:02:59.2]} 7... e5 {[%clk 0:02:57.7]} 8. h3 {[%clk 0:02:59]}
8... Bh5 {[%clk 0:02:57.8]} 9. O-O {[%clk 0:02:59]} 9... Bc5 {[%clk 0:02:58.1]}
10. c3 {[%clk 0:02:55.2]} 10... a5 {[%clk 0:02:56.9]} 11. a4 {[%clk 0:02:51.8]}
11... O-O {[%clk 0:02:56.3]} 12. Qe2 {[%clk 0:02:51.7]} 12... Qc7 {[%clk
0:02:51.2]} 13. Kh2 {[%clk 0:02:43.6]} 13... Rfe8 {[%clk 0:02:48]} 14. Qc4
{[%clk 0:02:38.4]} 14... Qb6 {[%clk 0:02:20.9]} 15. Kg1 {[%clk 0:02:31]} 15...
Rad8 {[%clk 0:02:16.8]} 16. Nb3 {[%clk 0:02:30.1]} 16... Bf8 {[%clk 0:02:05.8]}
17. Be3 {[%clk 0:02:30]} 17... Qc7 {[%clk 0:02:06.2]} 18. Nbd2 {[%clk
0:02:22.9]} 18... Nb6 {[%clk 0:01:57]} 19. Qe2 {[%clk 0:02:10.9]} 19... Nbd7
{[%clk 0:01:56.4]} 20. Qc4 {[%clk 0:02:06.6]} 20... Nb6 {[%clk 0:01:56.1]} 21.
Qb3 {[%clk 0:01:48.1]} 21... Nbd7 {[%clk 0:01:55.6]} 22. Rfe1 {[%clk 0:01:46.2]}
22... Bc5 {[%clk 0:01:42.5]} 23. Qc2 {[%clk 0:01:45.9]} 23... Bxe3 {[%clk
0:01:38.3]} 24. Rxe3 {[%clk 0:01:46.8]} 24... Nc5 {[%clk 0:01:34.9]} 25. b4
{[%clk 0:01:47]} 25... axb4 {[%clk 0:01:32.1]} 26. cxb4 {[%clk 0:01:47.9]} 26...
Ne6 {[%clk 0:01:31.6]} 27. Qb2 {[%clk 0:01:34.5]} 27... Bxf3 {[%clk 0:01:27.4]}
28. Nxf3 {[%clk 0:01:29.1]} 28... Nd4 {[%clk 0:01:27.6]} 29. Ne1 {[%clk
0:01:26.8]} 29... Rd7 {[%clk 0:01:11.1]} 30. Nd3 {[%clk 0:01:23.9]} 30... Red8
{[%clk 0:01:11]} 31. Nc5 {[%clk 0:01:24.1]} 31... Rd6 {[%clk 0:01:11.4]} 32. a5
{[%clk 0:01:24.5]} 32... Nd7 {[%clk 0:01:03]} 33. Na4 {[%clk 0:01:20.2]} 33...
Nf8 {[%clk 0:00:58.5]} 34. Nb6 {[%clk 0:01:17.1]} 34... Nfe6 {[%clk 0:00:53.2]}
35. h4 {[%clk 0:01:17.6]} 35... h5 {[%clk 0:00:49.7]} 36. Nc4 {[%clk 0:01:16.5]}
36... R6d7 {[%clk 0:00:49.7]} 37. Bh3 {[%clk 0:01:17.2]} 37... g6 {[%clk
0:00:50.1]} 38. Bxe6 {[%clk 0:01:16.9]} 38... fxe6 {[%clk 0:00:45.4]} 39. Kg2
{[%clk 0:01:16.1]} 39... Rf8 {[%clk 0:00:42]} 40. Rf1 {[%clk 0:01:12.2]} 40...
Kh7 {[%clk 0:00:38.9]} 41. Rd3 {[%clk 0:01:10.5]} 41... Rfd8 {[%clk 0:00:20.5]}
42. Rfd1 {[%clk 0:01:09.8]} 42... Kg8 {[%clk 0:00:19]} 43. f4 {[%clk 0:01:03.6]}
43... Nb5 {[%clk 0:00:17.3]} 44. Nxe5 {[%clk 0:00:45.3]} 44... Rxd3 {[%clk
0:00:17.6]} 45. Rxd3 {[%clk 0:00:45.9]} 45... Rxd3 {[%clk 0:00:17.9]} 46. Nxd3
{[%clk 0:00:46.8]} 46... Qd8 {[%clk 0:00:17.7]} 47. Nf2 {[%clk 0:00:46.4]} 47...
Qd4 {[%clk 0:00:15.8]} 48. Qxd4 {[%clk 0:00:46.1]} 48... Nxd4 {[%clk 0:00:16.3]}
49. Nd3 {[%clk 0:00:46.8]} 49... Kf7 {[%clk 0:00:16.8]} 50. Nc5 {[%clk
0:00:44.7]} 50... Nc2 {[%clk 0:00:16.1]} 51. Nxb7 {[%clk 0:00:45]} 51... Nxb4
{[%clk 0:00:15.1]} 52. Nc5 {[%clk 0:00:45.3]} 1-0

[Event "Early-Titled-Tuesday-Blitz-February-13-2024"]
[Site "Chess.com"]
[Date "2024.02.13"]
[Round "4"]
[White "yosephtaher"]
[Black "profedechess93"]
[Result "1-0"]
[WhiteElo "2924"]
[BlackElo "2629"]
[TimeControl "180+1"]
[EndTime "8:42:40 PST"]
[Termination "yosephtaher won by resignation"]

1. d4 {[%clk 0:03:00.9]} 1... d5 {[%clk 0:02:58.9]} 2. Nc3 {[%clk 0:03:01.1]}
2... Nf6 {[%clk 0:02:57.3]} 3. Bf4 {[%clk 0:03:01.5]} 3... a6 {[%clk 0:02:56.2]}
4. e3 {[%clk 0:03:01.7]} 4... c5 {[%clk 0:02:55.1]} 5. Nf3 {[%clk 0:03:01.8]}
5... cxd4 {[%clk 0:02:54.5]} 6. exd4 {[%clk 0:03:01.8]} 6... Nc6 {[%clk
0:02:55]} 7. Ne5 {[%clk 0:03:02.3]} 7... Bf5 {[%clk 0:02:53.5]} 8. g4 {[%clk
0:03:02.2]} 8... Bc8 {[%clk 0:02:41.8]} 9. h3 {[%clk 0:03:00.3]} 9... Qb6 {[%clk
0:02:37.6]} 10. g5 {[%clk 0:02:54.6]} 10... Ne4 {[%clk 0:02:30.7]} 11. Nxe4
{[%clk 0:02:47.9]} 11... dxe4 {[%clk 0:02:31.6]} 12. Nc4 {[%clk 0:02:28]} 12...
Qd8 {[%clk 0:01:25.2]} 13. d5 {[%clk 0:02:27.5]} 13... Nb4 {[%clk 0:01:23.9]}
14. Ne3 {[%clk 0:02:24.5]} 14... e6 {[%clk 0:01:18.7]} 15. d6 {[%clk 0:02:12.8]}
15... Nc6 {[%clk 0:01:11.9]} 16. Bg2 {[%clk 0:01:47.9]} 16... e5 {[%clk
0:01:10.3]} 17. Bg3 {[%clk 0:01:48.1]} 17... Bxd6 {[%clk 0:00:56.7]} 18. Bxe4
{[%clk 0:01:47.6]} 18... O-O {[%clk 0:00:56.6]} 19. c3 {[%clk 0:01:46.9]} 19...
Bc5 {[%clk 0:00:33.4]} 20. Qh5 {[%clk 0:01:42.5]} 20... g6 {[%clk 0:00:34]} 21.
Qh6 {[%clk 0:01:42]} 21... f5 {[%clk 0:00:29.3]} 22. gxf6 {[%clk 0:01:39.2]}
22... Qxf6 {[%clk 0:00:29.2]} 23. O-O-O {[%clk 0:01:34.1]} 23... Be6 {[%clk
0:00:26.1]} 24. Ng4 {[%clk 0:01:33.8]} 24... Qg7 {[%clk 0:00:26.2]} 25. Qxg7+
{[%clk 0:01:34.1]} 25... Kxg7 {[%clk 0:00:27.1]} 26. Bxc6 {[%clk 0:01:34.9]}
26... bxc6 {[%clk 0:00:26.6]} 27. Bxe5+ {[%clk 0:01:35.5]} 27... Kf7 {[%clk
0:00:25.5]} 28. Bg3 {[%clk 0:01:34.4]} 28... Bd5 {[%clk 0:00:23.6]} 29. Rhe1
{[%clk 0:01:31.5]} 29... Rfe8 {[%clk 0:00:23.9]} 30. c4 {[%clk 0:01:30.7]} 30...
Bg2 {[%clk 0:00:18.7]} 31. Rd7+ {[%clk 0:01:25.1]} 31... Kf8 {[%clk 0:00:18.7]}
32. Rxe8+ {[%clk 0:01:23.3]} 32... Rxe8 {[%clk 0:00:19.6]} 33. Rxh7 {[%clk
0:01:22.7]} 33... Re1+ {[%clk 0:00:13.5]} 34. Kc2 {[%clk 0:01:20.6]} 34... Be4+
{[%clk 0:00:11.6]} 35. Kb3 {[%clk 0:01:19.4]} 35... g5 {[%clk 0:00:11.7]} 36.
Rd7 {[%clk 0:01:11.3]} 36... Re2 {[%clk 0:00:11.7]} 37. Bd6+ {[%clk 0:01:06.8]}
37... Bxd6 {[%clk 0:00:07.6]} 38. Rxd6 {[%clk 0:01:07.7]} 38... Ke7 {[%clk
0:00:05.1]} 39. Rh6 {[%clk 0:00:58.7]} 39... a5 {[%clk 0:00:05.4]} 40. a3 {[%clk
0:00:57.3]} 40... Bc2+ {[%clk 0:00:04.2]} 41. Kc3 {[%clk 0:00:57.5]} 41... Be4
{[%clk 0:00:02.6]} 42. b4 {[%clk 0:00:56.7]} 42... a4 {[%clk 0:00:01.6]} 43. Kd4
{[%clk 0:00:56]} 43... Bf5 {[%clk 0:00:02]} 44. Ne3 {[%clk 0:00:54.5]} 44... Ra2
{[%clk 0:00:01.9]} 45. Nxf5+ {[%clk 0:00:54.6]} 1-0

[Event "Early-Titled-Tuesday-Blitz-February-13-2024"]
[Site "Chess.com"]
[Date "2024.02.13"]
[Round "4"]
[White "Yan_Dyomin2010"]
[Black "ProfessorChess101"]
[Result "1-0"]
[WhiteElo "2599"]
[BlackElo "2798"]
[TimeControl "180+1"]
[EndTime "8:42:42 PST"]
[Termination "Yan_Dyomin2010 won by resignation"]

1. e4 {[%clk 0:03:00.9]} 1... e5 {[%clk 0:02:58.2]} 2. Nf3 {[%clk 0:02:58.7]}
2... Nc6 {[%clk 0:02:51.1]} 3. Bb5 {[%clk 0:02:58.7]} 3... a6 {[%clk 0:02:49.9]}
4. Ba4 {[%clk 0:02:57.7]} 4... b5 {[%clk 0:02:50.1]} 5. Bb3 {[%clk 0:02:57.5]}
5... Na5 {[%clk 0:02:50.7]} 6. O-O {[%clk 0:02:45.6]} 6... d6 {[%clk 0:02:49.1]}
7. d4 {[%clk 0:02:41.1]} 7... exd4 {[%clk 0:02:48.2]} 8. Nxd4 {[%clk 0:02:40.5]}
8... Nf6 {[%clk 0:02:48.1]} 9. Bd2 {[%clk 0:02:38.4]} 9... c5 {[%clk 0:02:41.9]}
10. Bd5 {[%clk 0:01:57.1]} 10... Nxd5 {[%clk 0:02:16.6]} 11. exd5 {[%clk
0:01:57.6]} 11... cxd4 {[%clk 0:02:01.1]} 12. Qe1+ {[%clk 0:01:57.2]} 12... Qe7
{[%clk 0:01:58.2]} 13. Bxa5 {[%clk 0:01:58.1]} 13... Qxe1 {[%clk 0:01:53.5]} 14.
Rxe1+ {[%clk 0:01:56.6]} 14... Kd7 {[%clk 0:01:54.1]} 15. Bb6 {[%clk 0:01:56.2]}
15... Bb7 {[%clk 0:01:51.6]} 16. Bxd4 {[%clk 0:01:55.8]} 16... Bxd5 {[%clk
0:01:51.7]} 17. Nc3 {[%clk 0:01:53.4]} 17... Bb7 {[%clk 0:01:50.8]} 18. Ne2
{[%clk 0:01:46.5]} 18... Be7 {[%clk 0:01:47.7]} 19. Nf4 {[%clk 0:01:44.7]} 19...
Rhc8 {[%clk 0:01:43.8]} 20. c3 {[%clk 0:01:43.5]} 20... g6 {[%clk 0:01:39.3]}
21. Nd3 {[%clk 0:01:37.4]} 21... Bf8 {[%clk 0:01:32]} 22. a4 {[%clk 0:01:37.1]}
22... Re8 {[%clk 0:01:28.3]} 23. Rxe8 {[%clk 0:01:32.9]} 23... Kxe8 {[%clk
0:01:20.2]} 24. f3 {[%clk 0:01:30.6]} 24... Kd7 {[%clk 0:01:17.4]} 25. Kf2
{[%clk 0:01:30.2]} 25... Bc6 {[%clk 0:01:17.2]} 26. Nb4 {[%clk 0:01:30]} 26...
Bb7 {[%clk 0:01:12.2]} 27. axb5 {[%clk 0:01:22.6]} 27... axb5 {[%clk 0:01:12.1]}
28. Re1 {[%clk 0:01:22.6]} 28... Re8 {[%clk 0:00:46.4]} 29. Rxe8 {[%clk
0:01:19.4]} 29... Kxe8 {[%clk 0:00:46.3]} 30. g4 {[%clk 0:01:19.6]} 30... Bh6
{[%clk 0:00:41.3]} 31. h4 {[%clk 0:01:17.3]} 31... Kd7 {[%clk 0:00:25.6]} 32.
Nc2 {[%clk 0:01:02.7]} 32... Bc1 {[%clk 0:00:23.1]} 33. b4 {[%clk 0:00:55.1]}
33... Ke6 {[%clk 0:00:10]} 34. Be3 {[%clk 0:00:53.5]} 34... Bb2 {[%clk
0:00:08.3]} 35. Nd4+ {[%clk 0:00:53.2]} 35... Kd5 {[%clk 0:00:08.8]} 36. Nxb5
{[%clk 0:00:53.7]} 36... Bc6 {[%clk 0:00:04.7]} 37. Nc7+ {[%clk 0:00:53.7]}
37... Kc4 {[%clk 0:00:05]} 38. Bd4 {[%clk 0:00:43.6]} 38... Bxc3 {[%clk
0:00:03.7]} 39. Bxc3 {[%clk 0:00:44.5]} 39... Kxc3 {[%clk 0:00:04.6]} 40. b5
{[%clk 0:00:44.4]} 40... Bb7 {[%clk 0:00:05.2]} 41. Ne8 {[%clk 0:00:44.6]} 41...
Kb4 {[%clk 0:00:01.5]} 42. Nxd6 {[%clk 0:00:43.7]} 42... Bd5 {[%clk 0:00:02.1]}
43. b6 {[%clk 0:00:43.3]} 43... Kc5 {[%clk 0:00:02.6]} 44. b7 {[%clk 0:00:43.7]}
1-0